bitfinex/quotes_SOLUSD_20240905
["timestamp","ask_amount","ask_price","bid_price","bid_amount"]
[1725519762965,7.545,132.54,132.5,1.50913415]
[1725519764075,27.5438,132.56,132.51,7.5464]
[1725519764272,0.8647822,132.57,132.53,7.5453]
[1725519764476,0.8647822,132.57,132.54,1.50870052]
[1725519765361,0.8647822,132.57,132.54,9.05340052]
[1725519766373,0.8647822,132.57,132.55,7.5442]
[1725519766671,0.8647822,132.57,132.56,9.05208349]
[1725519769751,0.8647822,132.57,132.56,7.5437]
[1725519777574,0.8647822,132.57,132.56,52.5437]
[1725519778356,0.8647822,132.57,132.56,54.0518232]
[1725519778556,0.8647822,132.57,132.56,52.5437]
[1725519778978,0.8647822,132.57,132.56,54.05176989]
[1725519779185,0.8647822,132.57,132.56,7.5437]
[1725519784778,0.8647822,132.57,132.54,18.8617]
[1725519786068,0.8647822,132.57,132.55,1.50868529]
[1725519786272,0.8647822,132.57,132.54,18.8617]
[1725519786273,0.8647822,132.57,132.54,26.4064]
[1725519787060,0.8647822,132.57,132.55,1.50863895]
[1725519787373,0.8647822,132.57,132.54,26.4064]
[1725519788458,0.8647822,132.57,132.54,18.8617]
[1725519788664,7.5438,132.56,132.51,18.8658]
[1725519789160,7.5438,132.56,132.52,1.50888864]
[1725519789366,7.5438,132.56,132.51,18.8658]
[1725519789795,8.4079822,132.57,132.52,7.5455]
[1725519790668,7.5437,132.56,132.52,7.5455]
[1725519791375,7.5437,132.56,132.52,9.05453391]
[1725519791574,8.4079822,132.57,132.53,1.50899497]
[1725519791777,8.4079822,132.57,132.52,9.05449497]
[1725519792494,8.4079822,132.57,132.52,7.5455]
[1725519793589,8.4079822,132.57,132.52,9.05438802]
[1725519793796,8.4079822,132.57,132.52,7.5455]
[1725519795279,0.8647822,132.57,132.51,26.4123]
[1725519795492,26.5749,132.56,132.49,7.5472]
[1725519795689,7.5449,132.54,132.49,7.5472]
[1725519795999,22.5929,132.53,132.49,7.5472]
[1725519796299,22.5929,132.53,132.49,9.05644586]
[1725519796300,15.0473,132.53,132.49,9.05644586]
[1725519796483,15.0473,132.53,132.49,7.5472]
[1725519796684,7.5466,132.51,132.45,31.28670798]
[1725519796885,7.5466,132.51,132.46,7.5489]
[1725519797207,15.0473,132.53,132.45,29.37376424]
[1725519797379,6.2106,132.51,132.45,26.4241]
[1725519797582,7.5472,132.5,132.45,26.4241]
[1725519797799,27.5477,132.49,132.45,18.8742]
[1725519798102,27.5477,132.49,132.44,7.5504]
[1725519798103,20.0,132.49,132.44,7.5504]
[1725519798310,23.3755,132.46,132.43,2.95026782]
[1725519798605,20.0,132.45,132.38,18.8839]
[1725519799396,20.0,132.45,132.39,7.5533]
[1725519799586,7.5507,132.44,132.39,7.5533]
[1725519800097,7.5507,132.44,132.39,9.06379509]
[1725519800284,27.55,132.45,132.39,7.5533]
[1725519802085,7.5506,132.44,132.39,7.5533]
[1725519802806,20.0,132.45,132.4,18.8811]
[1725519803396,27.5501,132.45,132.4,26.4334]
[1725519803711,20.0,132.45,132.41,7.5522]
[1725519804082,21.9565,132.46,132.43,18.8776]
[1725519804306,21.9565,132.46,132.44,7.5504]
[1725519804501,15.8261,132.46,132.44,7.5504]
[1725519805478,29.4229,132.49,132.43,18.8776]
[1725519805683,21.8747,132.49,132.45,7.5499]
[1725519806187,21.8747,132.49,132.46,9.05910762]
[1725519806408,15.8154,132.49,132.45,18.8739]
[1725519806593,15.8154,132.49,132.45,26.4234]
[1725519807311,15.8154,132.49,132.46,7.5494]
[1725519808404,22.0175,132.52,132.47,20.38082093]
[1725519808612,22.0175,132.52,132.49,7.5476]
[1725519809405,22.0175,132.52,132.5,7.5471]
[1725519809614,22.0175,132.52,132.49,7.5476]
[1725519810401,22.0175,132.52,132.47,18.8712]
[1725519810593,22.0175,132.52,132.46,7.5493]
[1725519810594,7.5472,132.5,132.46,7.5493]
[1725519811200,20.0,132.49,132.45,7.5499]
[1725519812603,20.0,132.49,132.45,9.05966738]
[1725519812799,20.0,132.49,132.45,7.5499]
[1725519813007,20.0,132.49,132.46,7.5489]
[1725519813316,27.5466,132.51,132.47,7.5487]
[1725519814911,20.0,132.51,132.48,7.5482]
[1725519815218,20.0,132.51,132.47,7.5487]
[1725519815790,27.5468,132.51,132.47,7.5487]
[1725519815996,27.5468,132.51,132.46,26.4223]
[1725519816792,7.5478,132.49,132.45,7.5499]
[1725519817416,52.5473,132.5,132.45,7.5499]
[1725519817594,20.0,132.49,132.45,7.5499]
[1725519818390,27.5479,132.49,132.45,7.5499]
[1725519818894,20.0,132.49,132.46,7.5494]
[1725519819703,20.0,132.51,132.49,7.5477]
[1725519820815,20.0,132.51,132.48,7.5481]
[1725519822018,20.0,132.51,132.49,7.5476]
[1725519822520,20.0,132.51,132.47,26.4193]
[1725519822719,20.0,132.51,132.48,7.5479]
[1725519824711,20.0,132.51,132.48,9.05728032]
[1725519824928,20.0,132.51,132.49,7.5477]
[1725519825117,20.0,132.51,132.49,18.8688]
[1725519825430,22.0175,132.52,132.49,18.8688]
[1725519825614,15.5809,132.52,132.49,18.8688]
[1725519825809,22.2015,132.55,132.51,18.866]
[1725519826125,22.2015,132.55,132.52,1.50896215]
[1725519826321,16.062,132.55,132.52,1.50896215]
[1725519826553,0.8647822,132.57,132.54,18.8621]
[1725519826707,0.8647822,132.57,132.55,1.50863077]
[1725519827233,0.8647822,132.57,132.55,9.05283077]
[1725519827525,0.8647822,132.57,132.55,7.5442]
[1725519828535,0.8647822,132.57,132.56,7.5437]
[1725519829829,20.8647822,132.57,132.56,7.5437]
[1725519830927,20.8647822,132.57,132.55,7.5443]
[1725519831627,20.8647822,132.57,132.54,26.4069]
[1725519832614,20.8647822,132.57,132.54,18.8621]
[1725519833209,28.4081822,132.57,132.52,7.5458]
[1725519836917,7.5439,132.56,132.51,26.4125]
[1725519837117,20.0,132.55,132.51,26.4125]
[1725519837307,20.8647822,132.57,132.51,26.4125]
[1725519837739,7.5443,132.55,132.51,26.4125]
[1725519838038,7.5461,132.52,132.48,26.4184]
[1725519838207,13.7085,132.53,132.48,26.4184]
[1725519838531,20.0,132.52,132.48,26.4184]
[1725519838915,20.0,132.52,132.49,7.5475]
[1725519839127,20.0,132.52,132.49,1.50935582]
[1725519839310,20.0,132.52,132.5,7.5467]
[1725519839630,6.1629,132.53,132.5,7.5467]
[1725519839928,6.5432,132.56,132.47,30.7677147]
[1725519840226,20.0,132.55,132.5,18.8668]
[1725519840531,6.5432,132.56,132.52,18.8642]
[1725519841123,6.5432,132.56,132.53,7.5452]
[1725519843829,6.5432,132.56,132.51,7.546]
[1725519844009,14.087,132.56,132.51,7.546]
[1725519844330,7.5453,132.54,132.49,26.416]
[1725519844848,20.0,132.53,132.49,26.416]
[1725519846038,20.0,132.53,132.51,7.5464]
[1725519846229,20.0,132.55,132.51,7.5464]
[1725519846556,20.0,132.55,132.52,1.50903119]
[1725519846923,20.0,132.55,132.51,9.0554097]
[1725519847121,20.0,132.55,132.52,7.5459]
[1725519848636,20.0,132.55,132.53,7.5454]
[1725519848822,0.8647822,132.57,132.55,7.5443]
[1725519849025,20.8647822,132.57,132.55,7.5443]
[1725519850228,20.8647822,132.57,132.56,9.05228797]
[1725519850422,0.8647822,132.57,132.56,9.05228797]
[1725519851023,0.8647822,132.57,132.56,7.5437]
[1725519852145,0.8647822,132.57,132.55,26.4042]
[1725519853946,0.8647822,132.57,132.56,7.5437]
[1725519854122,0.8647822,132.57,132.55,26.4043]
[1725519854444,0.8647822,132.57,132.49,16.5929]
[1725519854445,0.8647822,132.57,132.52,18.8641]
[1725519854847,8.4080822,132.57,132.52,26.4096]
[1725519855023,20.0,132.56,132.52,26.4096]
[1725519860847,20.0,132.56,132.53,9.05432066]
[1725519861149,20.0,132.56,132.54,7.5447]
[1725519861453,20.8647822,132.57,132.54,7.5447]
[1725519861826,0.8647822,132.57,132.54,7.5447]
[1725519862847,0.8647822,132.57,132.55,7.5442]
[1725519863230,0.8647822,132.57,132.56,7.5437]
[1725519863743,0.8647822,132.57,132.55,7.5443]
[1725519865633,0.8647822,132.57,132.54,26.4064]
[1725519867454,0.8647822,132.57,132.55,7.5442]
[1725519868435,0.8647822,132.57,132.55,9.05277991]
[1725519869543,0.8647822,132.57,132.56,7.5437]
[1725519870739,0.8647822,132.57,132.55,7.5442]
[1725519873168,0.8647822,132.57,132.54,26.4064]
[1725519873461,8.4079822,132.57,132.53,7.5453]
[1725519873642,0.8647822,132.57,132.53,7.5453]
[1725519873842,0.8647822,132.57,132.53,9.05412579]
[1725519876063,0.8647822,132.57,132.53,7.5453]
[1725519877061,8.4082822,132.57,132.52,18.8647]
[1725519877241,7.4574822,132.57,132.52,26.4105]
[1725519878367,16.2354,132.56,132.52,26.4105]
[1725519879253,16.2354,132.56,132.51,7.5464]
[1725519879452,20.0,132.55,132.51,7.5464]
[1725519880247,27.5443,132.55,132.51,7.5464]
[1725519881353,20.0,132.55,132.49,18.8683]
[1725519881558,45.0,132.54,132.49,18.8683]
[1725519881770,20.0,132.53,132.49,18.8683]
[1725519882344,20.0,132.53,132.5,1.50942442]
[1725519882543,20.0,132.53,132.49,18.8683]
[1725519882750,20.0,132.53,132.5,1.50915317]
[1725519882969,20.0,132.53,132.49,18.8683]
[1725519883272,20.0,132.53,132.5,7.547]
[1725519886589,20.0,132.53,132.5,9.05622119]
[1725519887069,20.0,132.53,132.5,401.547]
[1725519889080,20.0,132.53,132.5,394.0]
[1725519889372,20.0,132.55,132.52,7.546]
[1725519889570,20.0,132.55,132.52,9.0549698]
[1725519891083,20.0,132.55,132.52,7.546]
[1725519891282,20.0,132.55,132.53,7.5454]
[1725519891964,16.2354,132.56,132.53,18.8631]
[1725519892164,0.8647822,132.57,132.54,1.50870535]
[1725519892680,0.8647822,132.57,132.51,21.73786638]
[1725519892681,0.8647822,132.57,132.56,7.5437]
[1725519895485,0.8647822,132.57,132.56,52.5437]
[1725519895681,0.8647822,132.57,132.56,54.05158545]
[1725519896281,8.22e-05,132.57,132.56,74.05158545]
[1725519896463,8.22e-05,132.57,132.56,83.5072582]
[1725519897362,8.22e-05,132.57,132.56,74.05158545]
[1725519897666,8.22e-05,132.57,132.56,104.05158545]
[1725519897966,8.22e-05,132.57,132.56,134.71165417]
[1725519898487,8.22e-05,132.57,132.56,133.20376872]
[1725519898986,8.22e-05,132.57,132.56,103.20376872]
[1725519899183,8.22e-05,132.57,132.56,7.5437]
[1725519899356,8.22e-05,132.57,132.56,52.5437]
[1725519900673,8.22e-05,132.57,132.56,7.5437]
[1725519901619,8.22e-05,132.57,132.56,9.0519781]
[1725519903096,8.22e-05,132.57,132.56,7.5437]
[1725519904088,8.22e-05,132.57,132.56,9.05212893]
[1725519904676,8.22e-05,132.57,132.56,7.5437]
[1725519904991,8.22e-05,132.57,132.56,9.05199089]
[1725519905505,8.22e-05,132.57,132.56,7.5437]
[1725519905664,8.22e-05,132.57,132.56,9.05211794]
[1725519908987,8.22e-05,132.57,132.56,7.5437]
[1725519909774,8.22e-05,132.57,132.56,9.05191109]
[1725519911195,8.22e-05,132.57,132.56,7.5437]
[1725519912280,8.22e-05,132.57,132.56,9.05189931]
[1725519912486,8.22e-05,132.57,132.56,7.5437]
[1725519915281,8.22e-05,132.57,132.56,9.051911]
[1725519915603,8.22e-05,132.57,132.56,7.5437]
[1725519917086,8.22e-05,132.57,132.56,9.05191756]
[1725519917680,8.22e-05,132.57,132.56,7.5437]
[1725519918294,15.7264822,132.57,132.55,18.86]
[1725519920086,15.7264822,132.57,132.56,7.5437]
[1725519921378,15.7264822,132.57,132.55,27.91271612]
[1725519921979,15.7264822,132.57,132.55,26.4041]
[1725519924818,15.7264822,132.57,132.53,7.5453]
[1725519924819,23.2697822,132.57,132.53,7.5453]
[1725519925803,23.2697822,132.57,132.53,7.4453]
[1725519926407,15.7264822,132.57,132.52,26.4099]
[1725519926621,7.5447,132.55,132.5,401.547]
[1725519926809,45.0,132.54,132.5,401.5469]
[1725519926985,7.5445,132.55,132.5,401.5469]
[1725519927186,7.5449,132.54,132.5,401.5469]
[1725519927609,7.5444,132.55,132.5,401.5469]
[1725519929314,7.5444,132.55,132.51,9.05560417]
[1725519929496,7.5444,132.55,132.51,7.5464]
[1725519929695,23.2700822,132.57,132.53,7.5453]
[1725519929992,15.7264822,132.57,132.53,7.5453]
[1725519930299,15.7264822,132.57,132.54,9.05353563]
[1725519930505,15.7264822,132.57,132.54,7.5447]
[1725519930893,8.22e-05,132.57,132.55,9.05308488]
[1725519931098,8.22e-05,132.57,132.55,7.5443]
[1725519932690,8.22e-05,132.57,132.56,9.05229959]
[1725519932891,8.22e-05,132.57,132.56,7.5437]
[1725519934418,8.22e-05,132.57,132.5,462.43490929]
[1725519934715,8.22e-05,132.57,132.52,18.8644]
[1725519934897,8.22e-05,132.57,132.53,7.5449]
[1725519935404,8.22e-05,132.57,132.55,7.5442]
[1725519941525,8.22e-05,132.57,132.55,9.05282372]
[1725519941823,8.22e-05,132.57,132.55,7.5442]
[1725519942926,8.22e-05,132.57,132.55,9.05282302]
[1725519943128,8.22e-05,132.57,132.56,7.5437]
[1725519946304,8.22e-05,132.57,132.56,9.05187923]
[1725519948007,8.22e-05,132.57,132.56,7.5437]
[1725519948428,8.22e-05,132.57,132.56,9.05188291]
[1725519950928,8.22e-05,132.57,132.56,7.5437]
[1725519956135,8.22e-05,132.57,132.56,9.05184807]
[1725519956537,8.22e-05,132.57,132.56,9.05184943]
[1725519957113,8.22e-05,132.57,132.56,7.5437]
[1725519959147,8.22e-05,132.57,132.56,9.05207836]
[1725519959523,8.22e-05,132.57,132.56,9.05190736]
[1725519959912,8.22e-05,132.57,132.56,7.5437]
[1725519964538,8.22e-05,132.57,132.56,9.05190868]
[1725519964926,8.22e-05,132.57,132.56,7.5437]
[1725519965238,8.22e-05,132.57,132.56,19.81323221]
[1725519965450,8.22e-05,132.57,132.56,86.32113233]
[1725519967052,8.22e-05,132.57,132.56,84.81323221]
[1725519967250,8.22e-05,132.57,132.56,7.5437]
[1725519967458,8.22e-05,132.57,132.56,37.5437]
[1725519968256,8.22e-05,132.57,132.56,21.32148778]
[1725519968571,8.22e-05,132.57,132.56,41.32148778]
[1725519968863,8.22e-05,132.57,132.56,86.32148778]
[1725519969035,8.22e-05,132.57,132.56,84.81323221]
[1725519969236,8.22e-05,132.57,132.56,64.81323221]
[1725519969541,8.22e-05,132.57,132.56,84.81323221]
[1725519970064,22.4041,132.69,132.64,18.8476]
[1725519970263,22.4041,132.69,132.65,1.50749542]
[1725519970568,29.9408,132.69,132.64,26.3866]
[1725519971141,29.9408,132.69,132.65,7.5385]
[1725519971456,29.9408,132.69,132.64,26.3866]
[1725519971653,22.4041,132.69,132.66,7.5377]
[1725519972147,22.4041,132.69,132.65,7.5385]
[1725519972855,20.0,132.68,132.65,7.5385]
[1725519973062,20.0,132.68,132.64,18.8476]
[1725519973857,20.0,132.68,132.64,26.3867]
[1725519974333,22.4041,132.69,132.66,7.5379]
[1725519974536,22.4041,132.69,132.67,1.50727187]
[1725519974932,22.4041,132.69,132.66,7.5379]
[1725519976451,22.4041,132.69,132.67,1.50727354]
[1725519976966,22.4041,132.69,132.66,7.5379]
[1725519978446,22.4041,132.69,132.65,7.5385]
[1725519979378,22.4041,132.69,132.64,26.3866]
[1725519979541,22.4041,132.69,132.62,7.5402]
[1725519979542,7.5375,132.67,132.62,7.5402]
[1725519979742,7.5375,132.67,132.63,1.50768497]
[1725519980041,7.5375,132.67,132.62,7.5402]
[1725519980860,7.5375,132.67,132.63,9.04717973]
[1725519981042,27.537,132.68,132.63,9.04717973]
[1725519981851,27.537,132.68,132.64,1.50760026]
[1725519982643,27.537,132.68,132.63,7.5395]
[1725519983146,7.5376,132.67,132.63,7.5395]
[1725519983358,7.5376,132.67,132.62,7.5402]
[1725519983761,7.5376,132.67,132.63,7.5397]
[1725519985955,22.4041,132.69,132.63,18.8481]
[1725519986157,29.9404,132.69,132.63,18.8481]
[1725519987061,22.4041,132.69,132.6,18.853]
[1725519987271,7.5381,132.66,132.61,7.5404]
[1725519988866,7.5381,132.66,132.62,1.50784784]
[1725519991375,7.5381,132.66,132.62,7.5402]
[1725519992475,7.5376,132.67,132.63,7.5397]
[1725519995369,7.5376,132.67,132.62,26.3904]
[1725519995563,7.5381,132.66,132.62,26.3904]
[1725519996171,7.5376,132.67,132.63,9.04735623]
[1725519996471,7.5376,132.67,132.63,7.5396]
[1725519996667,20.0,132.68,132.6,7.541]
[1725519996871,7.5387,132.65,132.6,7.541]
[1725519998765,7.5387,132.65,132.61,7.5407]
[1725519999187,7.5387,132.65,132.62,1.50770605]
[1725519999675,7.5387,132.65,132.61,7.5407]
[1725520001880,22.4041,132.69,132.6,12.26953221]
[1725520002085,22.4041,132.69,132.64,7.5387]
[1725520002252,22.4041,132.69,132.6,12.26953221]
[1725520002453,29.9405,132.69,132.64,7.539]
[1725520002851,7.5369,132.68,132.63,7.5395]
[1725520003151,22.4041,132.69,132.63,1.50758417]
[1725520003357,7.5375,132.67,132.63,1.50758417]
[1725520004055,7.5375,132.67,132.62,26.3901]
[1725520004450,20.0,132.68,132.62,26.3901]
[1725520004680,20.0,132.68,132.61,7.5408]
[1725520004978,7.5382,132.66,132.61,7.5408]
[1725520005181,20.0,132.65,132.61,7.5408]
[1725520005661,7.537,132.68,132.63,7.5396]
[1725520005863,20.0,132.67,132.63,7.5396]
[1725520006063,20.0,132.67,132.64,1.50751032]
[1725520006262,20.0,132.67,132.63,7.5396]
[1725520007564,20.0,132.67,132.64,7.5388]
[1725520007763,27.537,132.68,132.63,26.3878]
[1725520010790,20.0,132.68,132.63,18.8485]
[1725520011473,22.4041,132.69,132.63,18.8485]
[1725520011789,22.4041,132.69,132.66,7.538]
[1725520011989,22.4041,132.69,132.65,26.3843]
[1725520012196,22.4041,132.69,132.65,18.8459]
[1725520012391,22.4041,132.69,132.64,7.5391]
[1725520012570,22.4041,132.69,132.62,18.8499]
[1725520012771,7.5376,132.67,132.62,26.3901]
[1725520013004,7.5376,132.67,132.63,7.5397]
[1725520014498,20.0,132.68,132.63,7.5397]
[1725520014499,27.537,132.68,132.63,7.5397]
[1725520015087,27.537,132.68,132.64,1.50750476]
[1725520015280,27.537,132.68,132.63,7.5397]
[1725520015474,27.537,132.68,132.64,7.539]
[1725520017000,20.0,132.68,132.64,26.3861]
[1725520017872,20.0,132.68,132.65,1.50745061]
[1725520018974,0.8647822,132.7,132.64,12.26953221]
[1725520019303,0.8647822,132.7,132.69,7.5363]
[1725520019593,0.8647822,132.7,132.69,54.04312615]
[1725520020274,0.8647822,132.7,132.69,52.5363]
[1725520020773,0.8647822,132.7,132.69,64.80583221]
[1725520021399,0.8647822,132.7,132.69,160.22583221]
[1725520021576,0.8647822,132.7,132.69,147.9563]
[1725520021775,0.8647822,132.7,132.69,161.73215146]
[1725520021979,0.8647822,132.7,132.69,160.22583221]
[1725520022387,22.2706,132.78,132.72,18.8365]
[1725520022591,20.0,132.77,132.72,18.8365]
[1725520022790,7.5323,132.76,132.7,36.6704178]
[1725520023398,20.0,132.75,132.7,36.6704178]
[1725520024071,20.0,132.75,132.7,7.5352]
[1725520024481,27.5331,132.75,132.7,7.5352]
[1725520025376,7.5336,132.74,132.69,7.5362]
[1725520025579,15.243,132.73,132.69,7.5362]
[1725520025992,15.243,132.73,132.7,9.04206641]
[1725520026186,15.243,132.73,132.7,7.5352]
[1725520026476,15.243,132.73,132.69,7.5362]
[1725520027383,15.243,132.73,132.7,9.04265562]
[1725520027577,15.243,132.73,132.71,1.5067993]
[1725520028103,15.243,132.73,132.68,18.8409]
[1725520028297,26.3202,132.72,132.65,18.8465]
[1725520028506,7.5352,132.71,132.67,7.5374]
[1725520029010,26.3202,132.72,132.68,7.5368]
[1725520029303,33.8549,132.72,132.67,7.5374]
[1725520029503,7.5356,132.71,132.66,7.5379]
[1725520029703,7.5359,132.7,132.65,26.3851]
[1725520030481,7.5359,132.7,132.66,1.50739629]
[1725520030806,7.5352,132.71,132.66,9.04519629]
[1725520030996,20.0,132.7,132.66,9.04519629]
[1725520031197,20.0,132.7,132.66,7.5378]
[1725520032008,20.0,132.7,132.67,1.50728508]
[1725520032200,20.0,132.7,132.66,7.5378]
[1725520032403,20.0,132.7,132.66,9.04508466]
[1725520032716,20.0,132.7,132.66,9.04508771]
[1725520033007,21.44277793,132.75,132.66,9.04508771]
[1725520033008,50.0,132.83,132.67,17.5374]
[1725520033204,45.0,132.82,132.68,1.50718764]
[1725520033417,50.0,132.81,132.67,17.5374]
[1725520033601,50.0,132.81,132.67,10.0]
[1725520033602,45.0,132.8,132.67,10.0]
[1725520034899,20.0,132.79,132.67,17.5374]
[1725520035108,45.0,132.78,132.67,17.5374]
[1725520035312,20.0,132.77,132.69,10.0]
[1725520035682,20.0,132.77,132.67,17.5374]
[1725520036005,15.4226,132.79,132.69,10.0]
[1725520036212,15.4226,132.76,132.69,10.0]
[1725520036409,20.0,132.75,132.69,10.0]
[1725520036987,45.0,132.74,132.69,10.0]
[1725520037188,20.0,132.73,132.69,10.0]
[1725520040311,16.1959,132.71,132.66,10.0]
[1725520041301,16.1959,132.71,132.64,28.8476]
[1725520041503,65.0,132.7,132.64,28.8476]
[1725520041720,20.0,132.7,132.66,28.844]
[1725520041911,22.3494,132.71,132.66,36.3819]
[1725520042216,22.3494,132.71,132.64,10.0]
[1725520042414,45.0,132.7,132.64,10.0]
[1725520042909,45.0,132.7,132.63,26.3886]
[1725520042910,20.0,132.69,132.63,18.849]
[1725520043221,45.0,132.68,132.62,10.0]
[1725520043798,45.0,132.68,132.62,17.5402]
[1725520045106,20.0,132.69,132.65,10.0]
[1725520045310,20.0,132.7,132.65,17.5385]
[1725520046016,22.3494,132.71,132.66,20.35188275]
[1725520046196,22.3494,132.71,132.66,18.8444]
[1725520046608,15.7021,132.74,132.66,18.8444]
[1725520046810,65.0,132.73,132.66,18.8444]
[1725520049518,65.0,132.73,132.66,26.3823]
[1725520050606,64.84,132.73,132.66,18.8444]
[1725520051420,64.84,132.73,132.65,10.0]
[1725520053424,64.84,132.73,132.63,28.8486]
[1725520053716,6.5007,132.72,132.63,28.8486]
[1725520054021,65.0,132.71,132.63,28.8486]
[1725520055002,15.7378,132.7,132.63,28.8486]
[1725520055210,65.0,132.69,132.63,28.8486]
[1725520057000,65.0,132.69,132.63,36.3883]
[1725520057319,65.0,132.69,132.63,37.89611578]
[1725520057719,65.0,132.69,132.64,7.5391]
[1725520057917,65.0,132.69,132.65,10.0]
[1725520057918,20.0,132.69,132.65,10.0]
[1725520058112,6.5007,132.72,132.65,19.04586973]
[1725520058622,6.5007,132.72,132.66,7.5375]
[1725520059409,20.0,132.71,132.66,7.5375]
[1725520060312,20.0,132.71,132.65,37.89176973]
[1725520061130,20.0,132.71,132.65,36.3842]
[1725520061425,20.0,132.71,132.65,28.8457]
[1725520061627,45.0,132.7,132.65,28.8457]
[1725520062000,20.0,132.71,132.65,28.8457]
[1725520062312,45.0,132.7,132.65,18.8457]
[1725520066233,45.0,132.7,132.62,18.85]
[1725520066531,20.0,132.69,132.62,18.85]
[1725520066705,45.0,132.68,132.63,10.0]
[1725520067528,20.0,132.71,132.63,17.5393]
[1725520067712,45.0,132.7,132.63,17.5393]
[1725520067913,20.0,132.69,132.63,17.5393]
[1725520068232,20.0,132.69,132.62,26.3902]
[1725520068526,45.0,132.68,132.63,10.0]
[1725520068730,45.0,132.68,132.62,26.3902]
[1725520069229,45.0,132.68,132.63,10.0]
[1725520070538,45.0,132.68,132.61,9.04865833]
[1725520070539,45.0,132.68,132.61,10.0]
[1725520070712,20.0,132.67,132.61,10.0]
[1725520070912,45.0,132.66,132.61,10.0]
[1725520072109,20.0,132.67,132.63,10.0]
[1725520072433,20.0,132.68,132.61,28.8514]
[1725520072630,20.0,132.68,132.62,7.5402]
[1725520072927,45.0,132.67,132.61,28.8514]
[1725520073712,45.0,132.67,132.62,7.5403]
[1725520075830,20.0,132.68,132.63,7.5397]
[1725520076034,15.9105,132.69,132.64,10.0]
[1725520076220,22.4978,132.72,132.64,11.50760423]
[1725520076536,22.4978,132.72,132.66,10.0]
[1725520077232,15.9971,132.72,132.66,17.5378]
[1725520078238,15.9971,132.72,132.68,10.0]
[1725520080230,15.9971,132.72,132.66,17.5378]
[1725520082627,15.9971,132.72,132.66,19.04514894]
[1725520082922,15.9971,132.72,132.67,7.5373]
[1725520084345,2.29332391,132.74,132.67,7.5373]
[1725520084639,22.1438,132.75,132.68,19.04374345]
[1725520084846,22.1438,132.75,132.7,10.0]
[1725520086114,16.1215,132.75,132.7,17.5357]
[1725520086445,16.1215,132.75,132.71,7.5351]
[1725520086948,2.23317531,132.77,132.72,17.5346]
[1725520087246,15.4861,132.78,132.72,17.5346]
[1725520088048,15.4861,132.78,132.72,10.0]
[1725520088227,20.0,132.77,132.72,10.0]
[1725520088628,20.0,132.77,132.7,17.5355]
[1725520088629,45.0,132.76,132.7,17.5355]
[1725520089748,45.0,132.76,132.7,10.0]
[1725520089930,20.0,132.75,132.66,36.3824]
[1725520090244,45.0,132.74,132.68,10.0]
[1725520090426,20.0,132.73,132.68,10.0]
[1725520090934,20.0,132.73,132.68,17.5367]
[1725520091343,20.0,132.77,132.68,10.0]
[1725520091647,45.0,132.76,132.68,10.0]
[1725520091833,20.0,132.75,132.68,10.0]
[1725520092027,45.0,132.74,132.68,10.0]
[1725520092227,20.0,132.73,132.68,10.0]
[1725520092431,20.0,132.73,132.7,10.0]
[1725520092829,20.0,132.77,132.7,10.0]
[1725520093024,20.0,132.77,132.68,18.8417]
[1725520093025,45.0,132.76,132.68,36.3785]
[1725520093336,20.0,132.75,132.68,36.3785]
[1725520093641,20.0,132.75,132.7,10.0]
[1725520094849,45.0,132.76,132.72,10.0]
[1725520095051,15.4861,132.78,132.72,10.0]
[1725520095831,15.4861,132.78,132.7,36.3741]
[1725520096148,15.4861,132.78,132.71,10.0]
[1725520096354,65.0,132.77,132.71,10.0]
[1725520099849,65.0,132.77,132.74,10.0]